bitfinex/quotes_ETHUSD_20210401
["timestamp","ask_amount","ask_price","bid_price","bid_amount"]
[1617235317105,0.95,1933.9,1933.4,0.38]
[1617235318208,0.95,1933.9,1933.8,0.4]
[1617235318408,0.95,1933.9,1933.3,0.37406894]
[1617235318607,0.95,1933.9,1933.3,0.28]
[1617235319236,0.39,1933.8,1933.3,0.28]
[1617235319435,2.81740776,1933.9,1933.3,0.28]
[1617235319632,1.33,1933.9,1933.3,0.66]
[1617235319834,0.95,1933.9,1933.3,0.66]
[1617235320633,0.95,1933.9,1933.3,0.38]
[1617235320834,0.95,1933.9,1933.2,0.09406894]
[1617235320835,7.85,1933.8,1933.2,0.09406894]
[1617235321036,7.85,1933.8,1933.2,0.4]
[1617235321231,1.35,1933.9,1933.2,0.4]
[1617235321456,1.35,1933.9,1933.2,1.29406894]
[1617235321859,0.96,1933.9,1933.3,0.39]
[1617235322060,0.96,1933.9,1933.6,0.4]
[1617235322661,0.96,1933.9,1933.5,0.09406894]
[1617235323064,0.96,1933.9,1933.1,0.09406894]
[1617235323263,0.4,1933.3,1933.1,0.09406894]
[1617235323463,0.4,1933.3,1933.0,0.09406894]
[1617235323464,12.3,1933.2,1933.0,0.09406894]
[1617235323663,14.7,1933.1,1932.5,5.5]
[1617235323860,0.4,1932.9,1932.5,5.5]
[1617235324081,1.44351515,1932.9,1932.6,0.53516952]
[1617235324284,1.44351515,1932.9,1932.5,5.2621917]
[1617235324479,0.4,1932.6,1932.5,4.75966651]
[1617235324680,1.04351515,1932.9,1932.4,10.08669871]
[1617235324681,1.1446,1932.8,1932.4,10.08669871]
[1617235324881,1.04351515,1932.9,1932.4,10.08669871]
[1617235326081,1.04351515,1932.9,1932.4,18.43749555]
[1617235326280,1.04351515,1932.9,1932.6,8.96042]
[1617235326479,1.04351515,1932.9,1932.6,7.76042]
[1617235326708,2.04351515,1932.9,1932.6,7.76042]
[1617235327111,2.05023195,1932.9,1932.6,7.76042]
[1617235327312,2.05023195,1932.9,1932.6,8.16042]
[1617235327510,2.05023195,1932.9,1932.6,27.12941684]
[1617235327711,2.05023195,1932.9,1932.6,19.36899684]
[1617235327910,2.05023195,1932.9,1932.6,25.4571459]
[1617235328712,1.0067168,1932.9,1932.8,39.86079684]
[1617235328911,1.03347143,1933.3,1932.9,33.4537187]
[1617235329113,1.03347143,1933.3,1933.1,0.41]
[1617235329114,0.97207143,1933.3,1933.1,0.41]
[1617235329339,0.97207143,1933.3,1933.1,16.7304]
[1617235329539,0.97207143,1933.3,1933.1,25.08119684]
[1617235329937,0.97207143,1933.3,1933.1,30.58119684]
[1617235330539,0.97207143,1933.3,1933.2,16.10855684]
[1617235330739,0.97207143,1933.3,1933.2,25.28235684]
[1617235330941,0.96,1933.9,1933.2,30.78235684]
[1617235331141,0.96,1933.9,1933.4,8.35079684]
[1617235331338,0.96,1933.9,1933.4,11.49079684]
[1617235331539,0.96,1933.9,1933.3,0.336]
[1617235332368,0.96,1933.9,1933.5,14.39501]
[1617235332563,0.96,1933.9,1933.5,24.33580684]
[1617235332764,1.05,1934.0,1933.8,0.38]
[1617235332990,1.05,1934.0,1933.8,5.88]
[1617235333389,1.05,1934.0,1933.8,5.5]
[1617235333987,1.05,1934.0,1933.8,21.60656684]
[1617235334187,1.05,1934.0,1933.8,26.78656684]
[1617235334387,1.05,1934.0,1933.9,9.99494134]
[1617235334587,1.05,1934.0,1933.9,11.19494134]
[1617235334791,0.56063763,1934.2,1934.0,21.1]
[1617235334989,0.024112,1934.6,1934.1,20.70451554]
[1617235335191,0.024112,1934.6,1934.1,8.35079684]
[1617235335987,0.024112,1934.6,1934.2,5.5]
[1617235336188,0.024112,1934.6,1934.2,13.85079684]
[1617235336391,1.0,1934.6,1934.2,22.58678684]
[1617235336595,1.0,1934.6,1934.2,14.83269684]
[1617235336596,1.39,1934.6,1934.2,14.83269684]
[1617235336793,1.39,1934.6,1934.2,6.4819]
[1617235336988,1.0,1934.6,1934.2,0.9819]
[1617235337412,1.17437402,1934.7,1934.2,0.9819]
[1617235337609,1.17437402,1934.7,1934.1,26.77516684]
[1617235337809,0.00677676,1934.7,1934.3,21.49]
[1617235338010,1.0,1934.9,1934.5,0.39]
[1617235338408,1.0,1934.9,1934.4,42.90421554]
[1617235338611,19.37013461,1935.0,1934.5,29.84079684]
[1617235338810,19.37013461,1935.0,1934.5,36.32079684]
[1617235339009,19.37013461,1935.0,1934.6,5.5]
[1617235339410,19.37013461,1935.0,1934.9,16.34380847]
[1617235339411,10.18253461,1935.0,1934.9,16.34380847]
[1617235339612,4.89253461,1935.0,1934.9,34.07770531]
[1617235339840,0.02,1935.4,1934.9,40.77450531]
[1617235340044,1.03504048,1935.2,1935.0,37.25176684]
[1617235340439,1.03504048,1935.2,1935.0,37.66176684]
[1617235340639,1.03504048,1935.2,1935.0,45.74176684]
[1617235341039,0.7953154,1935.2,1935.1,13.3]
[1617235341240,0.7953154,1935.2,1935.1,27.31079684]
[1617235341439,0.7953154,1935.2,1935.1,27.71079684]
[1617235341840,0.7953154,1935.2,1935.1,19.91079684]
[1617235342040,0.7953154,1935.2,1935.1,19.51079684]
[1617235342465,0.7953154,1935.2,1935.1,19.36079684]
[1617235342868,0.7953154,1935.2,1935.1,25.56079684]
[1617235343068,1.54e-05,1935.2,1935.1,40.36079684]
[1617235343268,1.54e-05,1935.2,1935.1,50.76079684]
[1617235343666,1.54e-05,1935.2,1935.1,35.96079684]
[1617235343867,1.54e-05,1935.2,1935.1,35.56079684]
[1617235344069,2.0541599,1935.6,1935.2,14.0]
[1617235344267,2.0541599,1935.6,1935.3,1.2]
[1617235344469,2.0541599,1935.6,1935.5,0.17421478]
[1617235345504,2.0541599,1935.6,1935.5,8.27421478]
[1617235346104,2.0541599,1935.6,1935.5,17.67501162]
[1617235346304,2.0541599,1935.6,1935.5,21.29501162]
[1617235346505,5.99e-05,1935.6,1935.5,21.29501162]
[1617235346706,5.99e-05,1935.6,1935.5,20.09501162]
[1617235347106,5.99e-05,1935.6,1935.5,21.29501162]
[1617235347917,5.99e-05,1935.6,1935.5,26.79501162]
[1617235348514,0.00646378,1935.6,1935.5,26.79501162]
[1617235348715,0.00646378,1935.6,1935.5,31.80501162]
[1617235349915,0.00640388,1935.6,1935.5,33.00102943]
[1617235350963,0.00640388,1935.6,1935.5,43.00102943]
[1617235352163,13.00640388,1935.6,1935.5,43.00102943]
[1617235353168,13.00640388,1935.6,1935.5,51.00102943]
[1617235353366,1.0,1935.9,1935.6,30.7037187]
[1617235353566,1.01881468,1936.4,1935.8,13.9537187]
[1617235353767,1.01881468,1936.4,1935.9,18.5637187]
[1617235353967,1.01881468,1936.4,1935.9,14.41079684]
[1617235354164,1.01881468,1936.4,1936.0,5.01]
[1617235354365,1.01881468,1936.4,1936.3,0.14879174]
[1617235354766,1.01881468,1936.4,1936.3,9.31459174]
[1617235356185,0.86881468,1936.4,1936.3,9.31459174]
[1617235357592,0.81881468,1936.4,1936.3,9.31459174]
[1617235357991,1.00720956,1936.9,1936.4,14.45]
[1617235358243,1.00720956,1936.9,1936.4,29.27079684]
[1617235358840,1.00720956,1936.9,1936.4,14.82079684]
[1617235359041,1.00720956,1936.9,1936.4,24.82079684]
[1617235359242,0.75720956,1936.9,1936.4,32.56693684]
[1617235359442,0.75720956,1936.9,1936.8,0.12554808]
[1617235359443,0.76332678,1936.9,1936.8,0.12554808]
[1617235359841,0.76332678,1936.9,1936.8,7.29304808]
[1617235362643,0.92653167,1936.9,1936.8,7.29304808]
[1617235363244,1.30653167,1936.9,1936.8,7.29304808]
[1617235364089,0.92653167,1936.9,1936.8,7.29304808]
[1617235365491,0.87653167,1936.9,1936.8,7.29304808]
[1617235368498,0.87653167,1936.9,1936.8,7.1675]
[1617235368718,9.97327591,1937.3,1937.0,15.15]
[1617235368919,9.97340163,1937.3,1936.9,0.7471]
[1617235369717,0.4,1937.2,1936.9,0.7471]
[1617235370121,0.03751571,1937.6,1936.9,11.0271]
[1617235370320,5.71e-06,1937.6,1937.1,0.42]
[1617235370521,0.02,1937.8,1937.1,52.7737187]
[1617235370721,0.02,1937.8,1937.3,10.28]
[1617235370920,0.02,1937.8,1937.7,0.39]
[1617235371134,0.02,1937.8,1937.7,8.0965]
[1617235371356,1.01729735,1938.1,1937.7,8.0965]
[1617235371760,1.01729735,1938.1,1937.7,5.90664827]
[1617235371958,1.01729735,1938.1,1937.6,1.0829]
[1617235372155,1.01729735,1938.1,1937.2,0.8296]
[1617235372156,0.34,1937.7,1937.2,0.8296]
[1617235372352,0.04,1937.7,1937.2,0.8296]
[1617235372555,7.74508,1937.8,1937.5,0.38]
[1617235372756,7.74508,1937.8,1937.0,20.55451554]
[1617235372955,7.74508,1937.8,1937.0,8.20079684]
[1617235373158,15.08598,1937.8,1936.6,22.22079684]
[1617235373356,15.08598,1937.8,1936.6,8.20079684]
[1617235373357,0.39,1937.1,1936.6,8.20079684]
[1617235373557,0.39,1937.1,1936.3,1.19601781]
[1617235373558,0.41,1936.7,1936.3,1.19601781]
[1617235373756,1.06064164,1936.4,1936.3,1.19601781]
[1617235373969,2.09349142,1936.4,1936.3,1.19601781]
[1617235374172,2.09349142,1936.4,1936.1,1.0]
[1617235374569,9.84346142,1936.4,1936.1,1.0]
[1617235374770,4.22,1936.3,1936.1,1.0]
[1617235374970,3.13509142,1936.4,1936.1,1.0]
[1617235375171,13.65,1936.1,1935.6,1.19601781]
[1617235375373,22.1634,1936.1,1935.6,1.19601781]
[1617235375572,16.26456,1936.1,1935.6,1.14601781]
[1617235375772,8.5134,1936.1,1935.6,1.54601781]
[1617235375971,8.5134,1936.1,1935.9,0.39]
[1617235376371,2.9473,1936.1,1936.0,0.39]
[1617235376598,2.09349142,1936.4,1935.8,0.28]
[1617235376799,2.09349142,1936.4,1935.8,0.58]
[1617235377196,2.50349142,1936.4,1935.9,5.5]
[1617235377398,0.39,1936.3,1935.9,5.5]
[1617235378020,9.84340142,1936.4,1935.9,5.5]
[1617235378421,10.25340142,1936.4,1935.9,5.5]
[1617235378820,9.84340142,1936.4,1936.3,0.11559493]
[1617235379229,2.0666413,1936.5,1936.4,11.4]
[1617235379425,4.03960295,1936.6,1936.4,21.4]
[1617235379622,4.03960295,1936.6,1936.4,25.36]
[1617235379823,2.95e-06,1936.6,1936.5,29.87681554]
[1617235380022,35.03186,1938.3,1936.5,29.87681554]
[1617235380023,6.95995416,1938.3,1936.6,12.3537187]
[1617235380223,1.46823894,1938.2,1937.5,0.41]
[1617235380423,2.2,1937.9,1937.3,0.8549]
[1617235380623,2.2,1937.9,1937.3,0.4261]
[1617235380824,3.8731,1937.8,1937.3,0.21645745]
[1617235381022,7.6553263,1937.8,1937.3,0.21645745]
[1617235381224,7.7459,1937.5,1937.3,0.21645745]
[1617235381424,0.38,1937.4,1936.9,7.12309684]
[1617235381623,0.39,1937.3,1936.8,7.40309684]
[1617235381844,0.39,1937.3,1936.8,0.28]
[1617235382048,0.39,1937.3,1936.8,0.27056718]
[1617235382246,0.39,1937.3,1936.8,8.01642718]
[1617235382445,0.39,1937.2,1936.8,15.13952402]
[1617235382647,0.4,1937.0,1936.8,7.12309684]
[1617235382847,0.38,1936.9,1936.7,5.5]
[1617235383048,1.4243546,1936.9,1936.7,5.5]
[1617235383246,16.23550615,1936.9,1936.2,12.3537187]
[1617235383446,1.2,1936.8,1936.2,7.12309684]
[1617235383647,1.2,1936.8,1936.1,13.6736]
[1617235383648,0.4,1936.6,1936.3,0.19458274]
[1617235383846,7.7492,1936.8,1936.3,0.19458274]
[1617235384045,7.7492,1936.8,1936.2,0.67]
[1617235384246,10.1227546,1936.9,1936.2,0.67]
[1617235384476,10.1227546,1936.9,1936.2,7.79309684]
[1617235384678,10.1227546,1936.9,1936.2,0.67]
[1617235385075,11.3227546,1936.9,1936.2,0.67]
[1617235385276,10.1227546,1936.9,1936.3,5.5]
[1617235385475,11.3227546,1936.9,1936.3,5.5]
[1617235385675,0.4,1936.8,1936.3,8.64]
[1617235386075,0.4,1936.8,1936.3,15.76309684]
[1617235386276,0.4,1936.8,1936.3,8.64]
[1617235386476,0.4,1936.8,1936.3,5.5]
[1617235387096,1.4243546,1936.9,1936.3,5.5]
[1617235387299,1.0443546,1936.9,1936.5,0.38]
[1617235387496,1.0443546,1936.9,1936.6,0.39]
[1617235387695,1.0443546,1936.9,1936.4,0.28]
[1617235387895,1.0443546,1936.9,1936.3,5.5]
[1617235387896,1.0443546,1936.9,1936.3,12.62309684]
[1617235388095,1.0443546,1936.9,1936.3,16.40309684]
[1617235388296,1.4443546,1936.9,1936.3,16.40309684]
[1617235388495,1.3943546,1936.9,1936.3,16.40309684]
[1617235388696,0.9943546,1936.9,1936.8,0.12827735]
[1617235388896,1.89327349,1937.4,1936.8,0.53827735]
[1617235389096,16.7858299,1937.6,1936.8,0.53827735]
[1617235389097,12.9116599,1937.6,1936.8,0.53827735]
[1617235389297,12.9116599,1937.6,1936.9,0.378]
[1617235389298,9.76980855,1937.5,1936.9,0.378]
[1617235389725,8.78010855,1937.5,1937.1,0.41]
[1617235390124,1.07762617,1937.4,1937.1,0.41]
[1617235390926,1.07762617,1937.4,1936.9,14.17879684]
[1617235391125,1.07762617,1937.4,1937.0,5.59406894]
[1617235391727,0.26941229,1937.3,1937.0,5.59406894]
[1617235391928,0.26941229,1937.3,1937.0,5.5]
[1617235392343,3.846e-05,1937.4,1937.0,5.5]
[1617235392548,15.9785828,1937.9,1937.4,12.25]
[1617235392745,12.2705828,1937.9,1937.4,15.924]
[1617235392945,12.2705828,1937.9,1937.5,8.35079684]
[1617235393146,12.2705828,1937.9,1937.3,0.4]
[1617235393746,12.2705828,1937.9,1937.8,0.17050121]
[1617235394145,12.6705828,1937.9,1937.8,0.07050121]
[1617235394745,12.0205828,1937.9,1937.8,0.07050121]
[1617235395174,11.3032828,1937.9,1937.8,0.07050121]
[1617235395767,11.3032828,1937.9,1937.4,3.41549464]
[1617235395967,7.74504,1937.8,1937.5,8.15]
[1617235396166,7.74504,1937.8,1937.4,3.69549464]
[1617235396367,7.74504,1937.8,1937.3,8.89549464]
[1617235396567,7.64504,1937.8,1937.4,0.38]
[1617235396768,7.64504,1937.8,1937.3,8.89549464]
[1617235396968,7.64504,1937.8,1937.4,5.5]
[1617235397168,7.64504,1937.8,1937.4,5.89]
[1617235397369,0.10004,1937.8,1937.7,0.4]
[1617235397989,11.54889127,1937.9,1937.7,0.4]
[1617235398190,8.76263735,1938.1,1937.8,0.4]
[1617235398392,12.91294,1937.9,1937.8,0.4]
[1617235398592,8.51263735,1938.1,1937.8,0.4]
[1617235398793,8.51263735,1938.1,1938.0,0.15495867]
[1617235398794,3.87267,1938.1,1938.0,0.15495867]
[1617235399393,3.82267,1938.1,1938.0,0.53495867]
[1617235399592,4.83204275,1938.3,1937.7,9.39549464]
[1617235399797,8.70401275,1938.3,1938.1,0.4]
[1617235399995,3.87267,1938.1,1937.7,11.4]
[1617235400229,4.90874159,1938.1,1937.6,0.4]
[1617235400428,4.90874159,1938.1,1937.3,10.0]
[1617235400626,4.90874159,1938.1,1937.5,5.4]
[1617235401426,4.90874159,1938.1,1938.0,0.39]
[1617235401627,12.65290159,1938.1,1938.0,0.39]
[1617235402026,2.0651831,1938.0,1937.6,2.98]
[1617235402227,2.0651831,1938.0,1937.8,5.9]
[1617235402427,2.0651831,1938.0,1937.8,15.5]
[1617235402626,2.0651831,1938.0,1937.8,18.56]
[1617235402839,2.0651831,1938.0,1937.8,26.84886707]
[1617235403046,21.13,1937.9,1937.8,7.07e-06]
[1617235403242,21.13,1937.9,1937.1,5.0]
[1617235403444,21.13,1937.9,1936.8,0.0432]
[1617235403445,8.3451,1937.2,1936.8,0.0432]
[1617235403644,0.4,1937.0,1936.8,0.0432]
[1617235403842,8.96255311,1937.2,1936.8,0.0432]
[1617235404243,7.74795,1937.0,1936.8,0.0432]
[1617235404442,7.74795,1937.0,1936.5,0.39]
[1617235404643,6.3303077,1936.9,1936.4,0.09406894]
[1617235404843,9.01672545,1936.9,1936.3,15.5]
[1617235405045,3.07641775,1936.9,1936.8,6.39]
[1617235405246,2.0364,1936.9,1936.8,6.39]
[1617235405679,12.9112858,1937.3,1936.8,14.74079684]
[1617235405874,12.9112858,1937.3,1937.2,0.41]
[1617235406075,12.91325,1937.8,1937.2,0.41]
[1617235406274,18.07753,1937.8,1937.6,0.39]
[1617235406474,12.91325,1937.8,1937.6,0.39]
[1617235406674,12.91325,1937.8,1937.0,0.37406894]
[1617235406876,12.91325,1937.8,1937.1,10.0]
[1617235407076,12.91325,1937.8,1937.5,0.39]
[1617235407077,16.78563,1937.8,1937.5,0.39]
[1617235407275,16.78563,1937.8,1937.1,12.8]
[1617235407476,16.78563,1937.8,1937.1,2.73]
[1617235407477,7.74548,1937.5,1937.1,2.73]
[1617235407676,7.74548,1937.5,1936.9,8.35079684]
[1617235407677,8.77805306,1937.5,1936.8,5.5]
[1617235408296,8.77805306,1937.5,1937.0,5.5]
[1617235408491,3.87317,1937.4,1937.0,5.5]
[1617235408694,2.0657497,1937.2,1937.0,5.5]
[1617235408892,11.4974497,1937.2,1937.0,5.5]
[1617235409092,11.9074497,1937.2,1937.0,4.36227663]
[1617235409292,11.9074497,1937.2,1936.5,13.94486578]
[1617235409493,0.38,1937.1,1936.5,5.5]
[1617235409692,0.38,1937.1,1936.5,3.69951001]
[1617235409693,3.87448,1936.7,1936.5,3.69951001]
[1617235409893,7.74895,1936.6,1936.5,3.69951001]
[1617235410099,7.74895,1936.6,1936.5,2.9128757]
[1617235410293,7.74895,1936.6,1936.3,5.5]
[1617235410920,7.74895,1936.6,1936.5,8.75]
[1617235411115,14.20588,1937.0,1936.5,8.75]
[1617235411116,10.33207,1937.0,1936.5,8.75]
[1617235411316,10.33207,1937.0,1936.9,0.38]
[1617235411515,10.28207,1937.0,1936.9,0.38]
[1617235411715,10.28207,1937.0,1936.5,12.52483425]
[1617235412119,5.9397533,1937.0,1936.5,12.52483425]
[1617235412317,5.9397533,1937.0,1936.5,4.17403741]
[1617235412516,5.9397533,1937.0,1936.7,0.39]
[1617235412717,5.9397533,1937.0,1936.5,1.19403741]
[1617235412718,5.9397533,1937.0,1936.5,0.4]
[1617235412917,5.9397533,1937.0,1936.4,0.09406894]
[1617235412918,0.39,1936.9,1936.4,0.09406894]
[1617235413118,1.02917563,1936.9,1936.4,0.09406894]
[1617235413340,1.02917563,1936.9,1936.7,5.5]
[1617235413341,2.0661645,1936.8,1936.7,5.5]
[1617235413740,2.0661645,1936.8,1936.7,6.0476761]
[1617235414141,11.35931563,1936.9,1936.7,6.0476761]
[1617235414344,11.35931563,1936.9,1936.8,5.5]
[1617235414545,2.5825398,1937.2,1936.8,15.88]
[1617235414546,7.74633,1937.0,1936.8,15.88]
[1617235414746,11.67635865,1937.3,1936.8,19.02]
[1617235414944,11.67635865,1937.3,1937.1,0.41]
[1617235415143,11.67635865,1937.3,1937.2,5.5]
[1617235415971,10.32934,1937.3,1937.2,5.9]
[1617235416370,3.09812706,1937.5,1937.2,5.9]
[1617235416570,3.09812706,1937.5,1937.2,7.1]
[1617235417171,3.9,1937.3,1937.0,0.83]
[1617235417371,7.74513,1937.3,1937.0,0.83]
[1617235417569,2.0,1937.2,1937.0,0.83]
[1617235417770,0.36489585,1937.2,1937.0,0.55]
[1617235417970,3.09812706,1937.5,1937.0,0.55]
[1617235418171,3.09812706,1937.5,1937.0,0.64406894]
[1617235418370,7.74513,1937.3,1937.0,0.64406894]
[1617235418595,7.74513,1937.3,1936.9,11.43426843]
[1617235418596,7.74513,1937.3,1936.9,1.43426843]
[1617235418798,7.74513,1937.3,1937.2,0.20342547]
[1617235419396,1.03257306,1937.5,1937.2,0.20342547]
[1617235419798,3.87276,1937.6,1937.3,21.15]
[1617235420000,5.16308,1938.2,1937.3,32.70079684]
[1617235420199,5.16308,1938.2,1937.5,8.35079684]
[1617235420399,6.8630108,1938.3,1937.5,18.69079684]
[1617235420601,7.74361,1937.7,1937.6,8.30079684]
[1617235420798,10.32583,1938.0,1937.5,17.19]
[1617235420997,10.72583,1938.0,1937.5,10.0]
[1617235421225,10.72583,1938.0,1937.5,15.5]
[1617235421430,10.32583,1938.0,1937.5,15.5]
[1617235421825,5.9365406,1937.8,1937.5,15.5]
[1617235422226,5.9365406,1937.8,1937.5,10.0]
[1617235423258,5.9365406,1937.8,1937.5,15.5]
[1617235423658,7.74355,1937.7,1937.5,15.5]
[1617235424268,7.74355,1937.7,1937.5,16.7]
[1617235424667,7.74355,1937.7,1937.5,15.5]
[1617235425068,12.9059,1937.7,1937.5,15.5]
[1617235425268,12.9059,1937.7,1937.6,5.5]
[1617235426269,0.0001,1937.7,1937.6,5.5]
[1617235426469,8.73247738,1938.5,1937.6,5.89]
[1617235426672,8.32247738,1938.5,1937.7,10.95]
[1617235426869,0.14,1938.3,1937.7,23.95079684]
[1617235427670,13.20553401,1938.4,1937.8,20.65451554]
[1617235427872,10.3234427,1938.1,1937.8,22.22]
[1617235428070,10.32583,1938.0,1937.8,22.22]
[1617235428269,10.32583,1938.0,1937.8,27.45072264]
[1617235428871,10.32583,1938.0,1937.9,0.15555985]
[1617235429494,10.49511336,1938.0,1937.8,22.28881264]
[1617235429695,10.22583,1938.0,1937.8,17.72]
[1617235429896,10.22583,1938.0,1937.8,7.39524]
[1617235430095,0.39,1937.9,1937.8,1.99306472]
[1617235430297,0.39,1937.9,1937.7,26.20592272]
[1617235430497,0.39,1937.8,1937.7,15.88116272]
[1617235430697,0.39,1937.8,1937.4,8.4002]
[1617235430698,3.87167,1937.7,1937.4,8.4002]
[1617235430899,0.39,1937.6,1937.4,8.4002]
[1617235431501,3.87167,1937.7,1937.4,8.4002]
[1617235431926,3.87167,1937.7,1937.3,15.28]
[1617235432123,8.54e-06,1937.7,1937.6,10.0]
[1617235432324,1.0185409,1937.7,1937.6,51.3007]
[1617235432524,1.0185409,1937.7,1937.6,60.87609684]
[1617235432722,36.41,1938.7,1937.8,10.0]
[1617235432922,1.98367622,1938.5,1937.9,5.0]
[1617235433123,1.98367622,1938.5,1937.9,13.30079684]
[1617235433323,1.98367622,1938.5,1938.2,5.5]
[1617235433523,0.52569952,1938.4,1938.2,5.5]
[1617235433723,13.42983952,1938.4,1938.2,5.5]
[1617235433923,7.85044989,1938.3,1938.2,5.5]
[1617235434550,4.39044989,1938.3,1938.2,5.5]
[1617235435747,4.65971541,1938.3,1938.2,5.5]
[1617235435947,16.13930824,1938.4,1938.2,5.5]
[1617235436145,3.77540824,1938.4,1938.2,5.5]
[1617235436348,19.62446812,1938.6,1938.2,5.5]
[1617235436547,9.42,1938.5,1938.2,5.5]
[1617235436747,12.90414,1938.4,1938.2,5.5]
[1617235437575,12.90414,1938.4,1938.2,5.45]
[1617235437777,3.08,1938.3,1938.2,5.45]
[1617235437982,6.95085,1938.3,1938.2,5.45]
[1617235438779,6.95085,1938.3,1938.2,4.85179413]
[1617235438978,6.95085,1938.3,1938.2,5.04555554]
[1617235439178,7.35085,1938.3,1938.2,0.19376141]
[1617235439378,3.87085,1938.3,1938.2,0.19376141]
[1617235439619,8.88085,1938.3,1938.0,3.7617832]
[1617235439821,8.88085,1938.3,1938.0,2.74450645]
[1617235440018,0.38,1938.2,1938.0,2.74450645]
[1617235440418,0.4,1938.1,1938.0,2.74450645]
[1617235440618,1.43142784,1938.1,1938.0,2.74450645]
[1617235440821,1.03142784,1938.1,1938.0,2.74450645]
[1617235441418,1.03142784,1938.1,1937.9,20.5]
[1617235441818,8.77459784,1938.1,1937.9,20.5]
[1617235442432,8.77459784,1938.1,1938.0,5.5]
[1617235442629,0.5382,1937.8,1937.5,0.32]
[1617235442835,0.5382,1937.8,1937.4,5.0]
[1617235442836,9.04,1937.6,1937.4,0.1559]
[1617235443031,9.04,1937.6,1936.4,2.42007742]
[1617235443032,21.65,1937.5,1936.4,2.42007742]
[1617235443230,21.65,1937.5,1936.5,0.09406894]
[1617235443231,2.0659183,1937.0,1936.5,0.09406894]
[1617235443429,2.0659183,1937.0,1936.5,5.59406894]
[1617235443629,5.9396483,1937.0,1936.7,1.74661228]
[1617235443830,1.72045858,1936.9,1936.5,5.5]
[1617235444032,1.72045858,1936.9,1936.4,1.13197107]
[1617235444033,0.4,1936.7,1936.4,1.13197107]
[1617235444432,1.87141486,1936.5,1936.2,5.0]
[1617235444630,1.87141486,1936.5,1936.1,44.1529]
[1617235444852,3.87436,1936.5,1936.1,36.0]
[1617235445253,14.20598,1936.5,1936.4,5.5]
[1617235445453,16.55480339,1936.5,1936.4,2.75]
[1617235445653,16.55480339,1936.5,1936.4,2.7]
[1617235445856,17.88697472,1936.5,1936.4,0.74965668]
[1617235446055,19.88697472,1936.5,1936.4,0.74965668]
[1617235446255,17.14815133,1936.5,1936.4,0.74965668]
[1617235446455,10.76765133,1936.5,1936.2,5.5]
[1617235446656,9.82548,1936.5,1936.2,5.5]
[1617235446854,0.00663,1936.4,1936.2,5.5]
[1617235447055,1.9,1936.3,1936.2,5.5]
[1617235447481,1.9,1936.3,1936.1,1.0]
[1617235447684,7.74909,1936.2,1936.1,0.7]
[1617235447882,9.64909,1936.2,1936.1,0.7]
[1617235448882,9.64909,1936.2,1936.1,0.84675837]
[1617235450304,9.65572,1936.2,1936.1,0.84675837]
[1617235450500,11.17495847,1936.2,1936.1,0.84675837]
[1617235450702,11.17495847,1936.2,1936.1,31.19376988]
[1617235450902,11.17495847,1936.2,1936.1,44.19376988]
[1617235450903,9.65572,1936.2,1936.1,44.19376988]
[1617235451102,9.65572,1936.2,1936.1,41.43224392]
[1617235451303,9.65572,1936.2,1936.1,44.19376988]
[1617235451502,9.65572,1936.2,1936.1,57.40456672]
[1617235451503,1.90663,1936.2,1936.1,57.40456672]
[1617235451704,0.52783,1937.1,1936.1,56.21079684]
[1617235451904,0.13783,1937.1,1936.3,30.0]
[1617235452103,7.88303,1937.1,1936.4,17.44778764]
[1617235452302,7.88303,1937.1,1936.5,0.301]
[1617235452503,7.88303,1937.1,1936.5,30.301]
[1617235452730,0.4,1936.9,1936.6,0.09406894]
[1617235452932,0.4,1936.8,1936.5,8.69586578]
[1617235453131,0.4,1936.6,1936.5,0.09406894]
[1617235453334,6.7,1936.6,1936.3,1.19376988]
[1617235453530,9.2372,1936.6,1936.3,1.19376988]
[1617235453730,0.48406894,1936.5,1936.3,1.19376988]
[1617235453932,13.88,1936.4,1936.1,5.5]
[1617235454130,17.23173185,1936.4,1936.1,5.5]
[1617235454330,22.9613,1936.2,1936.1,2.53041287]
[1617235454530,8.0113,1936.2,1935.5,9.2058]
[1617235454729,0.39,1935.8,1935.5,9.2058]
[1617235454928,3.87523,1936.0,1935.4,5.78]
[1617235455129,0.4,1935.8,1935.5,0.09406894]
[1617235455380,1.29217554,1935.8,1935.4,5.78]
[1617235455581,1.55887702,1935.7,1935.5,4.06343609]
[1617235455781,9.30932702,1935.7,1935.5,4.06343609]
[1617235455979,14.42,1935.6,1935.5,4.06343609]
[1617235456178,22.74057287,1935.6,1935.5,2.73685198]
[1617235456379,23.80318011,1935.6,1935.5,2.73685198]
[1617235456582,23.80318011,1935.6,1935.2,9.75598413]
[1617235456583,3.57683,1935.4,1935.2,9.75598413]
[1617235456779,3.57683,1935.4,1935.2,8.65926336]
[1617235456780,19.86,1935.3,1935.2,8.65926336]
[1617235456979,19.86,1935.3,1935.2,7.64126336]
[1617235456980,21.33232682,1935.3,1935.2,7.64126336]
[1617235457179,15.19883766,1935.3,1935.2,2.47107436]
[1617235457379,18.55,1935.2,1935.1,1.0]
[1617235457578,18.55,1935.2,1934.3,2.75]
[1617235457579,25.1256,1935.2,1934.3,2.75]
[1617235457780,25.1256,1935.2,1934.3,1.4015]
[1617235457781,7.75602,1934.5,1934.3,1.4015]
[1617235457980,14.27642,1934.5,1934.3,1.2515]
[1617235458184,3.86,1934.4,1934.3,1.2515]
[1617235458581,3.86,1934.4,1934.2,3.03]
[1617235458781,7.34226921,1935.2,1934.2,6.00457435]
[1617235458782,1.16666921,1935.2,1934.2,6.00457435]
[1617235458981,1.16666921,1935.2,1934.3,0.19943488]
[1617235459182,10.44552999,1935.2,1934.3,0.09406894]
[1617235459380,9.82886078,1935.2,1934.3,0.29406894]